[Event "*** Titled Tuesday 3|2 Blitz (Early)"]
[Site "Chess.com"]
[Date "2016.12.06"]
[Round "4"]
[White "ftorodent"]
[Black "fireheart92"]
[Result "1-0"]
[WhiteElo "2508"]
[BlackElo "2556"]
[TimeControl "180+2"]
[EndTime "11:48:11 PST"]
[Termination "ftorodent won by resignation"]

1. d4 {[%clk 0:03:01.9]} 1... Nf6 {[%clk 0:03:00.6]} 2. c4 {[%clk 0:03:02]} 2...
c5 {[%clk 0:03:01.6]} 3. d5 {[%clk 0:03:02.2]} 3... g6 {[%clk 0:03:02.8]} 4. Nc3
{[%clk 0:03:02.4]} 4... Bg7 {[%clk 0:03:04.1]} 5. e4 {[%clk 0:03:03.2]} 5... O-O
{[%clk 0:03:06]} 6. Nf3 {[%clk 0:03:04.2]} 6... e6 {[%clk 0:03:07.1]} 7. Bd3
{[%clk 0:02:58.3]} 7... exd5 {[%clk 0:03:05.3]} 8. cxd5 {[%clk 0:02:53.9]} 8...
d6 {[%clk 0:03:06]} 9. h3 {[%clk 0:02:54.5]} 9... Bd7 {[%clk 0:03:07.1]} 10. a4
{[%clk 0:02:51.5]} 10... Na6 {[%clk 0:03:07.4]} 11. O-O {[%clk 0:02:52.5]} 11...
Nb4 {[%clk 0:03:01.1]} 12. Bf4 {[%clk 0:02:50.1]} 12... Qc7 {[%clk 0:02:54.1]}
13. Re1 {[%clk 0:02:35.8]} 13... Nh5 {[%clk 0:02:53.9]} 14. Bh2 {[%clk
0:02:34.7]} 14... Rfe8 {[%clk 0:02:53.5]} 15. Nb5 {[%clk 0:02:13.4]} 15... Bxb5
{[%clk 0:02:53.9]} 16. Bxb5 {[%clk 0:02:14.3]} 16... Red8 {[%clk 0:02:49.8]} 17.
Qd2 {[%clk 0:02:11.6]} 17... a6 {[%clk 0:02:49.3]} 18. Bc4 {[%clk 0:02:12.6]}
18... Rab8 {[%clk 0:02:41.7]} 19. e5 {[%clk 0:01:46.6]} 19... b5 {[%clk
0:02:31.1]} 20. axb5 {[%clk 0:01:38.2]} 20... axb5 {[%clk 0:02:32]} 21. exd6
{[%clk 0:01:36.3]} 21... Rxd6 {[%clk 0:02:33.9]} 22. Bb3 {[%clk 0:01:20.1]}
22... Qd8 {[%clk 0:02:26.9]} 23. Ra7 {[%clk 0:01:11.3]} 23... h6 {[%clk
0:02:11.1]} 24. Ree7 {[%clk 0:01:02.5]} 24... Nc6 {[%clk 0:01:51.4]} 25. dxc6
{[%clk 0:00:54.7]} 25... Rxd2 {[%clk 0:01:51.5]} 26. c7 {[%clk 0:00:55.8]} 26...
Rd1+ {[%clk 0:01:22.2]} 27. Ne1 {[%clk 0:00:52.7]} 27... Rxe1+ {[%clk
0:00:11.3]} 28. Rxe1 {[%clk 0:00:51.3]} 28... c4 {[%clk 0:00:11.5]} 29. cxb8=Q
{[%clk 0:00:49.6]} 29... Qxb8 {[%clk 0:00:11.8]} 30. Bxb8 {[%clk 0:00:50.1]}
30... cxb3 {[%clk 0:00:13.7]} 31. Re8+ {[%clk 0:00:50.3]} 31... Kh7 {[%clk
0:00:14.7]} 32. Rxf7 {[%clk 0:00:50.9]} 1-0

[Event "*** Titled Tuesday 3|2 Blitz (Early)"]
[Site "Chess.com"]
[Date "2016.12.06"]
[Round "4"]
[White "viktorskliarov"]
[Black "Izoria123"]
[Result "0-1"]
[WhiteElo "2439"]
[BlackElo "2558"]
[TimeControl "180+2"]
[EndTime "11:48:14 PST"]
[Termination "Izoria123 won by resignation"]

1. e4 {[%clk 0:03:02]} 1... c5 {[%clk 0:03:00]} 2. Nf3 {[%clk 0:03:02.6]} 2...
d6 {[%clk 0:03:01.5]} 3. d4 {[%clk 0:03:03.5]} 3... cxd4 {[%clk 0:03:03]} 4.
Qxd4 {[%clk 0:03:05.2]} 4... a6 {[%clk 0:02:54.4]} 5. Be3 {[%clk 0:03:05.2]}
5... Nf6 {[%clk 0:02:54.5]} 6. Nc3 {[%clk 0:03:05.4]} 6... e6 {[%clk 0:02:54.6]}
7. O-O-O {[%clk 0:03:05.2]} 7... Nc6 {[%clk 0:02:48.7]} 8. Qd2 {[%clk
0:03:05.9]} 8... Qc7 {[%clk 0:02:42.8]} 9. Bf4 {[%clk 0:03:02.7]} 9... Ng4
{[%clk 0:02:43.1]} 10. h3 {[%clk 0:02:58.1]} 10... Nge5 {[%clk 0:02:43.3]} 11.
Nd4 {[%clk 0:02:59]} 11... Be7 {[%clk 0:02:40.5]} 12. g4 {[%clk 0:02:59.8]}
12... O-O {[%clk 0:02:37.4]} 13. Bg3 {[%clk 0:03:00.8]} 13... b5 {[%clk
0:02:31]} 14. f4 {[%clk 0:02:54.3]} 14... Nxd4 {[%clk 0:02:28.8]} 15. Qxd4
{[%clk 0:02:41.2]} 15... Nc6 {[%clk 0:02:28]} 16. Qf2 {[%clk 0:02:33.9]} 16...
b4 {[%clk 0:02:27.6]} 17. Na4 {[%clk 0:02:25.7]} 17... Rb8 {[%clk 0:02:21.1]}
18. Kb1 {[%clk 0:02:16.7]} 18... e5 {[%clk 0:02:15.8]} 19. f5 {[%clk 0:02:09.2]}
19... Nd4 {[%clk 0:02:15.3]} 20. Rxd4 {[%clk 0:01:33.4]} 20... exd4 {[%clk
0:02:17.2]} 21. b3 {[%clk 0:01:34.8]} 21... Bf6 {[%clk 0:02:14.1]} 22. Bd3
{[%clk 0:01:34.4]} 22... Re8 {[%clk 0:02:09.9]} 23. Nb2 {[%clk 0:01:21.9]} 23...
Bb7 {[%clk 0:02:07.8]} 24. Nc4 {[%clk 0:01:20]} 24... Rbd8 {[%clk 0:02:00]} 25.
Re1 {[%clk 0:00:50.8]} 25... Qc5 {[%clk 0:01:59.7]} 26. Nd2 {[%clk 0:00:42.5]}
26... Be5 {[%clk 0:01:32.1]} 27. g5 {[%clk 0:00:27.3]} 27... d5 {[%clk
0:01:28.1]} 28. Bxe5 {[%clk 0:00:25.2]} 28... Rxe5 {[%clk 0:01:28.6]} 29. Nf3
{[%clk 0:00:23]} 29... Rxe4 {[%clk 0:01:27.9]} 30. Bxe4 {[%clk 0:00:18.3]} 30...
dxe4 {[%clk 0:01:29.8]} 31. Nh4 {[%clk 0:00:17.9]} 31... e3 {[%clk 0:01:29.9]}
32. Qf4 {[%clk 0:00:17.7]} 32... Rc8 {[%clk 0:01:22.8]} 33. Rc1 {[%clk
0:00:18.9]} 33... Qc3 {[%clk 0:01:19.8]} 34. g6 {[%clk 0:00:19.6]} 34... d3
{[%clk 0:01:17]} 35. gxf7+ {[%clk 0:00:19.8]} 35... Kxf7 {[%clk 0:01:17.5]} 0-1

[Event "*** Titled Tuesday 3|2 Blitz (Early)"]
[Site "Chess.com"]
[Date "2016.12.06"]
[Round "4"]
[White "saraswathii"]
[Black "Enzy63"]
[Result "1/2-1/2"]
[WhiteElo "2175"]
[BlackElo "2020"]
[TimeControl "180+2"]
[EndTime "11:48:19 PST"]
[Termination "Game drawn by repetition"]

1. e4 {[%clk 0:03:02]} 1... c5 {[%clk 0:02:59.8]} 2. Nf3 {[%clk 0:03:02.1]} 2...
d6 {[%clk 0:03:00.6]} 3. d3 {[%clk 0:03:01.7]} 3... g6 {[%clk 0:02:56.8]} 4. g3
{[%clk 0:03:02.6]} 4... Bg7 {[%clk 0:02:57.6]} 5. Bg2 {[%clk 0:03:03.5]} 5...
Nc6 {[%clk 0:02:57]} 6. O-O {[%clk 0:03:04.1]} 6... e5 {[%clk 0:02:54.9]} 7. c3
{[%clk 0:03:05.1]} 7... Nge7 {[%clk 0:02:52.2]} 8. a3 {[%clk 0:03:05.7]} 8...
O-O {[%clk 0:02:51.1]} 9. b4 {[%clk 0:03:04.8]} 9... b6 {[%clk 0:02:52.1]} 10.
b5 {[%clk 0:03:04.8]} 10... Na5 {[%clk 0:02:25.7]} 11. c4 {[%clk 0:03:04.4]}
11... h6 {[%clk 0:02:23.3]} 12. Bb2 {[%clk 0:02:59.9]} 12... Be6 {[%clk
0:02:23.1]} 13. Nh4 {[%clk 0:02:54.5]} 13... g5 {[%clk 0:01:55.8]} 14. Nf3
{[%clk 0:02:51.1]} 14... f5 {[%clk 0:01:53.6]} 15. exf5 {[%clk 0:02:51.7]} 15...
Nxf5 {[%clk 0:01:49.6]} 16. Nbd2 {[%clk 0:02:47.2]} 16... Qd7 {[%clk 0:01:46]}
17. Ne4 {[%clk 0:02:40.7]} 17... Nb7 {[%clk 0:01:38.1]} 18. Qe2 {[%clk
0:02:36.9]} 18... Rae8 {[%clk 0:01:36.9]} 19. a4 {[%clk 0:02:34]} 19... Nd4
{[%clk 0:01:35.2]} 20. Nxd4 {[%clk 0:02:33.5]} 20... exd4 {[%clk 0:01:36.3]} 21.
Rfe1 {[%clk 0:02:28.9]} 21... d5 {[%clk 0:01:29.3]} 22. cxd5 {[%clk 0:02:29.4]}
22... Bxd5 {[%clk 0:01:29.9]} 23. Qh5 {[%clk 0:02:26.4]} 23... Bf7 {[%clk
0:01:26.5]} 24. Qd1 {[%clk 0:02:18]} 24... Nd6 {[%clk 0:01:21.6]} 25. Nd2 {[%clk
0:02:00.5]} 25... Bg6 {[%clk 0:01:13.9]} 26. Rxe8 {[%clk 0:01:53.9]} 26... Rxe8
{[%clk 0:01:10.5]} 27. Bc6 {[%clk 0:01:54.1]} 27... Qe7 {[%clk 0:00:56]} 28.
Bxe8 {[%clk 0:01:53.3]} 28... Qxe8 {[%clk 0:00:57.6]} 29. Qf3 {[%clk 0:01:51.3]}
29... Nf7 {[%clk 0:00:49.9]} 30. Nc4 {[%clk 0:01:48]} 30... Qe6 {[%clk
0:00:43.3]} 31. Rd1 {[%clk 0:01:36.1]} 31... g4 {[%clk 0:00:38.5]} 32. Qa8+
{[%clk 0:01:35.1]} 32... Kh7 {[%clk 0:00:38.8]} 33. Qg2 {[%clk 0:01:26.6]} 33...
Ng5 {[%clk 0:00:30.4]} 34. Qf1 {[%clk 0:01:21.7]} 34... Nf3+ {[%clk 0:00:27.1]}
35. Kh1 {[%clk 0:01:22.4]} 35... Qd5 {[%clk 0:00:24.5]} 36. Qg2 {[%clk
0:01:23.2]} 36... Qe6 {[%clk 0:00:24.4]} 37. Qf1 {[%clk 0:01:18.3]} 37... Qd5
{[%clk 0:00:25.2]} 38. Qg2 {[%clk 0:01:17.9]} 38... Qe6 {[%clk 0:00:26.2]} 39.
Qf1 {[%clk 0:01:10.1]} 39... Qd5 {[%clk 0:00:27]} 40. Qg2 {[%clk 0:01:10.9]}
40... Qe6 {[%clk 0:00:28.1]} 41. Qf1 {[%clk 0:01:11.5]} 41... Qd5 {[%clk
0:00:29.3]} 1/2-1/2

[Event "*** Titled Tuesday 3|2 Blitz (Early)"]
[Site "Chess.com"]
[Date "2016.12.06"]
[Round "4"]
[White "Gabrielian_Artur"]
[Black "DanielNaroditsky"]
[Result "0-1"]
[WhiteElo "2578"]
[BlackElo "2699"]
[TimeControl "180+2"]
[EndTime "11:48:55 PST"]
[Termination "DanielNaroditsky won by resignation"]

1. e4 {[%clk 0:03:02]} 1... e5 {[%clk 0:03:01]} 2. Nf3 {[%clk 0:03:02.8]} 2...
Nc6 {[%clk 0:03:02.4]} 3. Bc4 {[%clk 0:03:03.9]} 3... Bc5 {[%clk 0:03:02.3]} 4.
O-O {[%clk 0:03:04.6]} 4... Nf6 {[%clk 0:03:04]} 5. d3 {[%clk 0:03:05.6]} 5...
a6 {[%clk 0:03:04.4]} 6. c3 {[%clk 0:03:00.9]} 6... Ba7 {[%clk 0:03:05.3]} 7. a4
{[%clk 0:02:58.8]} 7... d6 {[%clk 0:03:05.1]} 8. Bg5 {[%clk 0:02:58.8]} 8... h6
{[%clk 0:03:05.2]} 9. Bh4 {[%clk 0:02:59.8]} 9... g5 {[%clk 0:03:05.3]} 10. Bg3
{[%clk 0:03:01]} 10... Bg4 {[%clk 0:02:48.7]} 11. Nbd2 {[%clk 0:02:53]} 11... h5
{[%clk 0:02:45.2]} 12. h4 {[%clk 0:02:52.4]} 12... gxh4 {[%clk 0:02:32.3]} 13.
Bxh4 {[%clk 0:02:53]} 13... Rh6 {[%clk 0:02:34.2]} 14. Qb3 {[%clk 0:02:36.7]}
14... Qd7 {[%clk 0:02:34.9]} 15. Qxb7 {[%clk 0:02:32]} 15... Rb8 {[%clk
0:02:35.5]} 16. Qxa6 {[%clk 0:02:23.5]} 16... Rb6 {[%clk 0:02:36.2]} 17. Qxb6
{[%clk 0:02:21.4]} 17... Bxb6 {[%clk 0:02:32.4]} 18. b4 {[%clk 0:02:22.2]} 18...
Rg6 {[%clk 0:02:31.6]} 19. Ng5 {[%clk 0:02:15.9]} 19... d5 {[%clk 0:02:04.7]}
20. exd5 {[%clk 0:02:09.9]} 20... Nxd5 {[%clk 0:02:06.6]} 21. a5 {[%clk
0:02:05.9]} 21... Ba7 {[%clk 0:02:04.8]} 22. b5 {[%clk 0:02:06.8]} 22... Nd8
{[%clk 0:02:04.7]} 23. Nde4 {[%clk 0:01:48.5]} 23... f5 {[%clk 0:01:46.5]} 24.
Ng3 {[%clk 0:01:39.8]} 24... Nxc3 {[%clk 0:01:31.8]} 25. Rfe1 {[%clk 0:01:38.2]}
25... Qd4 {[%clk 0:01:20.2]} 26. Kh2 {[%clk 0:01:05.8]} 26... Be2 {[%clk
0:00:53.1]} 27. N5e4 {[%clk 0:00:25.5]} 27... fxe4 {[%clk 0:00:47.2]} 28. b6
{[%clk 0:00:17.4]} 28... cxb6 {[%clk 0:00:46.4]} 29. Nf5 {[%clk 0:00:17.8]}
29... Qd7 {[%clk 0:00:40.7]} 30. dxe4 {[%clk 0:00:19.1]} 30... Bxc4 {[%clk
0:00:39.2]} 31. Ra3 {[%clk 0:00:15.4]} 31... Nb5 {[%clk 0:00:27.9]} 32. Ra4
{[%clk 0:00:16.2]} 32... Be6 {[%clk 0:00:23.3]} 33. axb6 {[%clk 0:00:14.5]}
33... Bxb6 {[%clk 0:00:25.2]} 34. Ra8 {[%clk 0:00:15.5]} 34... Bxf5 {[%clk
0:00:24.1]} 35. exf5 {[%clk 0:00:17]} 35... Rxg2+ {[%clk 0:00:22.8]} 36. Kxg2
{[%clk 0:00:16.6]} 36... Qd5+ {[%clk 0:00:23.9]} 0-1

[Event "*** Titled Tuesday 3|2 Blitz (Early)"]
[Site "Chess.com"]
[Date "2016.12.06"]
[Round "4"]
[White "alturas_pacificas"]
[Black "Kawhi_Leonard2"]
[Result "0-1"]
[WhiteElo "2159"]
[BlackElo "2228"]
[TimeControl "180+2"]
[EndTime "11:48:58 PST"]
[Termination "Kawhi_Leonard2 won by resignation"]

1. d4 {[%clk 0:03:01.9]} 1... Nf6 {[%clk 0:02:59.4]} 2. Bf4 {[%clk 0:03:03.4]}
2... d6 {[%clk 0:02:57.7]} 3. e3 {[%clk 0:03:04.6]} 3... g6 {[%clk 0:02:55.8]}
4. Nf3 {[%clk 0:03:05.7]} 4... Bg7 {[%clk 0:02:57]} 5. Be2 {[%clk 0:03:07]} 5...
O-O {[%clk 0:02:57.7]} 6. O-O {[%clk 0:03:08.6]} 6... b6 {[%clk 0:02:59]} 7. h3
{[%clk 0:03:09.5]} 7... Bb7 {[%clk 0:03:00.6]} 8. Bh2 {[%clk 0:03:10]} 8... Nbd7
{[%clk 0:03:01.9]} 9. c4 {[%clk 0:03:11]} 9... Qe8 {[%clk 0:02:58]} 10. Nc3
{[%clk 0:03:10.4]} 10... a6 {[%clk 0:02:50.1]} 11. b4 {[%clk 0:03:05.5]} 11...
e5 {[%clk 0:02:46.2]} 12. Rc1 {[%clk 0:02:57.3]} 12... Qe7 {[%clk 0:02:43.5]}
13. Nd5 {[%clk 0:02:46.1]} 13... Bxd5 {[%clk 0:02:24.8]} 14. cxd5 {[%clk
0:02:44.2]} 14... e4 {[%clk 0:02:25.8]} 15. Nd2 {[%clk 0:02:39.4]} 15... Rfc8
{[%clk 0:02:26.2]} 16. Qb3 {[%clk 0:02:34.3]} 16... b5 {[%clk 0:02:21.8]} 17.
Rc6 {[%clk 0:02:28.6]} 17... Nb6 {[%clk 0:02:22.1]} 18. Bxd6 {[%clk 0:02:15.8]}
18... cxd6 {[%clk 0:02:22.8]} 19. Rxb6 {[%clk 0:02:17.4]} 19... Rc7 {[%clk
0:01:56.6]} 20. Rc6 {[%clk 0:02:11.7]} 20... Rxc6 {[%clk 0:01:31.9]} 21. dxc6
{[%clk 0:02:12.1]} 21... d5 {[%clk 0:01:33]} 22. a4 {[%clk 0:02:08.4]} 22... Bf8
{[%clk 0:01:29.7]} 23. Rc1 {[%clk 0:01:35.8]} 23... Qxb4 {[%clk 0:01:22.9]} 24.
Qxb4 {[%clk 0:01:21.8]} 24... Bxb4 {[%clk 0:01:22.3]} 25. c7 {[%clk 0:01:00.1]}
25... Rc8 {[%clk 0:01:19.2]} 26. axb5 {[%clk 0:00:59.5]} 26... axb5 {[%clk
0:01:08.8]} 27. Bxb5 {[%clk 0:00:33.7]} 27... Bxd2 {[%clk 0:00:54.6]} 28. Rc6
{[%clk 0:00:26.2]} 28... Ne8 {[%clk 0:00:47.1]} 29. Rc2 {[%clk 0:00:27.7]} 29...
Nxc7 {[%clk 0:00:32.8]} 30. Bd7 {[%clk 0:00:20.2]} 30... Rb8 {[%clk 0:00:20]}
31. Rxc7 {[%clk 0:00:18.6]} 31... Rb1+ {[%clk 0:00:20.3]} 32. Kh2 {[%clk
0:00:19.7]} 32... Be1 {[%clk 0:00:21.5]} 33. Be8 {[%clk 0:00:16.4]} 33... Bxf2
{[%clk 0:00:19.9]} 34. Bxf7+ {[%clk 0:00:17.9]} 34... Kh8 {[%clk 0:00:19.6]} 35.
Bxd5 {[%clk 0:00:19.4]} 35... Bxe3 {[%clk 0:00:19.6]} 36. Bxe4 {[%clk 0:00:19]}
36... Bf4+ {[%clk 0:00:19.8]} 0-1

[Event "*** Titled Tuesday 3|2 Blitz (Early)"]
[Site "Chess.com"]
[Date "2016.12.06"]
[Round "4"]
[White "Ind1anStar"]
[Black "Sethu0025"]
[Result "0-1"]
[WhiteElo "2163"]
[BlackElo "2607"]
[TimeControl "180+2"]
[EndTime "11:49:03 PST"]
[Termination "Sethu0025 won by resignation"]

1. d4 {[%clk 0:03:02]} 1... Nf6 {[%clk 0:03:00.1]} 2. c4 {[%clk 0:03:01.8]} 2...
e6 {[%clk 0:03:01.1]} 3. Nf3 {[%clk 0:03:01.8]} 3... d5 {[%clk 0:03:02]} 4. Nc3
{[%clk 0:03:00.6]} 4... c6 {[%clk 0:03:02.8]} 5. e3 {[%clk 0:03:00.1]} 5... Nbd7
{[%clk 0:03:03.2]} 6. Qc2 {[%clk 0:03:01.1]} 6... Bd6 {[%clk 0:03:03.5]} 7. g4
{[%clk 0:03:02.1]} 7... h6 {[%clk 0:03:02.3]} 8. Rg1 {[%clk 0:03:03]} 8... dxc4
{[%clk 0:03:00.2]} 9. Bxc4 {[%clk 0:03:02.8]} 9... b5 {[%clk 0:03:00.5]} 10. Bd3
{[%clk 0:03:02.5]} 10... Bb7 {[%clk 0:03:01]} 11. Ne4 {[%clk 0:02:56.8]} 11...
Nxe4 {[%clk 0:03:00.8]} 12. Bxe4 {[%clk 0:02:57.6]} 12... Rc8 {[%clk 0:02:53.6]}
13. Bd2 {[%clk 0:02:58.2]} 13... a6 {[%clk 0:02:51.1]} 14. h4 {[%clk 0:02:54.1]}
14... Nf6 {[%clk 0:02:35.5]} 15. g5 {[%clk 0:02:49.8]} 15... hxg5 {[%clk
0:02:34.2]} 16. hxg5 {[%clk 0:02:49.9]} 16... Nxe4 {[%clk 0:02:34.9]} 17. Qxe4
{[%clk 0:02:50.4]} 17... Qe7 {[%clk 0:02:36.1]} 18. g6 {[%clk 0:02:42.3]} 18...
f5 {[%clk 0:02:34.8]} 19. Qd3 {[%clk 0:02:39.4]} 19... c5 {[%clk 0:02:32]} 20.
Ne5 {[%clk 0:02:30.1]} 20... cxd4 {[%clk 0:02:15.1]} 21. Nf7 {[%clk 0:02:28.9]}
21... Rh4 {[%clk 0:02:03]} 22. exd4 {[%clk 0:02:27.5]} 22... Re4+ {[%clk
0:01:57.2]} 23. Kd1 {[%clk 0:02:22.8]} 23... Rg4 {[%clk 0:01:54.8]} 24. Ke2
{[%clk 0:02:14.6]} 24... Bd5 {[%clk 0:01:53.8]} 25. b3 {[%clk 0:02:13.5]} 25...
Re4+ {[%clk 0:01:43.1]} 26. Kd1 {[%clk 0:02:07.8]} 26... Rg4 {[%clk 0:01:41.4]}
27. Ke2 {[%clk 0:02:07.2]} 27... Bh2 {[%clk 0:01:36.5]} 28. Rxg4 {[%clk
0:01:57.8]} 28... fxg4 {[%clk 0:01:37.2]} 29. Rc1 {[%clk 0:01:51.7]} 29... Rxc1
{[%clk 0:01:28.9]} 30. Bxc1 {[%clk 0:01:52.7]} 30... Qc7 {[%clk 0:01:29.5]} 31.
Bd2 {[%clk 0:01:45.3]} 31... Bf3+ {[%clk 0:01:28.8]} 32. Ke1 {[%clk 0:01:44.6]}
32... Bf4 {[%clk 0:01:10.7]} 33. Bxf4 {[%clk 0:01:22.2]} 33... Qxf4 {[%clk
0:01:11.3]} 34. Qe3 {[%clk 0:01:21]} 34... Qxe3+ {[%clk 0:01:01.1]} 35. fxe3
{[%clk 0:01:22.1]} 35... g3 {[%clk 0:00:58.7]} 36. Ne5 {[%clk 0:01:16.4]} 36...
Be4 {[%clk 0:00:58.6]} 37. Kf1 {[%clk 0:01:13.9]} 37... Ke7 {[%clk 0:00:59.3]}
38. Ke2 {[%clk 0:01:03.1]} 38... a5 {[%clk 0:00:54.9]} 39. Nf3 {[%clk
0:00:59.1]} 39... g2 {[%clk 0:00:49.7]} 40. Ng1 {[%clk 0:00:51.9]} 40... b4
{[%clk 0:00:42.7]} 41. Kf2 {[%clk 0:00:41.7]} 41... Kf6 {[%clk 0:00:43.3]} 42.
Ne2 {[%clk 0:00:41.1]} 42... Kxg6 {[%clk 0:00:44.3]} 43. Nf4+ {[%clk 0:00:41.6]}
43... Kf5 {[%clk 0:00:44.8]} 44. Nxg2 {[%clk 0:00:39.2]} 44... Bxg2 {[%clk
0:00:44.5]} 45. Kxg2 {[%clk 0:00:40.8]} 45... Ke4 {[%clk 0:00:45.4]} 46. Kf2
{[%clk 0:00:42.4]} 46... g5 {[%clk 0:00:46.3]} 47. Ke2 {[%clk 0:00:43.7]} 47...
g4 {[%clk 0:00:47.3]} 48. Kf2 {[%clk 0:00:45.2]} 48... g3+ {[%clk 0:00:48]} 0-1

[Event "*** Titled Tuesday 3|2 Blitz (Early)"]
[Site "Chess.com"]
[Date "2016.12.06"]
[Round "4"]
[White "Alexander_Moskalenko"]
[Black "Keaton87"]
[Result "1-0"]
[WhiteElo "2653"]
[BlackElo "2472"]
[TimeControl "180+2"]
[EndTime "11:49:14 PST"]
[Termination "Alexander_Moskalenko won by resignation"]

1. e4 {[%clk 0:02:59.9]} 1... c5 {[%clk 0:03:00.7]} 2. Nf3 {[%clk 0:02:58]} 2...
d6 {[%clk 0:03:01.4]} 3. Bb5+ {[%clk 0:02:58.8]} 3... Nc6 {[%clk 0:03:00.4]} 4.
O-O {[%clk 0:02:50.3]} 4... Bd7 {[%clk 0:03:00.3]} 5. Re1 {[%clk 0:02:33.7]}
5... g6 {[%clk 0:02:59.4]} 6. c3 {[%clk 0:02:32.3]} 6... Bg7 {[%clk 0:02:56.2]}
7. d4 {[%clk 0:02:23.5]} 7... cxd4 {[%clk 0:02:53.6]} 8. cxd4 {[%clk 0:02:25.4]}
8... Qb6 {[%clk 0:02:52]} 9. Bxc6 {[%clk 0:02:25.2]} 9... bxc6 {[%clk
0:02:51.6]} 10. h3 {[%clk 0:02:13.1]} 10... Nf6 {[%clk 0:02:50.9]} 11. Nc3
{[%clk 0:02:12.1]} 11... O-O {[%clk 0:02:51]} 12. b3 {[%clk 0:02:13.4]} 12...
Rfd8 {[%clk 0:02:46.8]} 13. Be3 {[%clk 0:02:14]} 13... Qb7 {[%clk 0:02:46.4]}
14. Qc2 {[%clk 0:02:08.3]} 14... d5 {[%clk 0:02:38.9]} 15. e5 {[%clk 0:02:08.3]}
15... Bf5 {[%clk 0:02:39.8]} 16. Qc1 {[%clk 0:02:05.8]} 16... Ne4 {[%clk
0:02:40.3]} 17. Nxe4 {[%clk 0:01:56.2]} 17... Bxe4 {[%clk 0:02:42.2]} 18. Nd2
{[%clk 0:01:48.2]} 18... Bd3 {[%clk 0:02:38.7]} 19. Qc3 {[%clk 0:01:43.6]} 19...
Bf5 {[%clk 0:02:33.8]} 20. Rac1 {[%clk 0:01:44.1]} 20... Rac8 {[%clk 0:02:30.3]}
21. b4 {[%clk 0:01:38.3]} 21... a5 {[%clk 0:02:27.7]} 22. bxa5 {[%clk
0:01:36.9]} 22... c5 {[%clk 0:02:28.2]} 23. dxc5 {[%clk 0:01:25.7]} 23... d4
{[%clk 0:02:28.6]} 24. Bxd4 {[%clk 0:01:26.9]} 24... Be6 {[%clk 0:02:14.7]} 25.
Nb3 {[%clk 0:01:25.3]} 25... Bd5 {[%clk 0:02:09.8]} 26. f3 {[%clk 0:01:23.2]}
26... g5 {[%clk 0:02:03.7]} 27. Be3 {[%clk 0:01:20.6]} 27... h6 {[%clk
0:02:00.6]} 28. Red1 {[%clk 0:01:21.8]} 28... e6 {[%clk 0:01:59]} 29. Bf2 {[%clk
0:01:12.1]} 29... h5 {[%clk 0:01:57.6]} 30. Qe3 {[%clk 0:01:07.4]} 30... g4
{[%clk 0:01:57.4]} 31. hxg4 {[%clk 0:01:07.8]} 31... hxg4 {[%clk 0:01:58.8]} 32.
fxg4 {[%clk 0:01:00.5]} 32... Bxg2 {[%clk 0:02:00.7]} 33. Nd4 {[%clk 0:00:47.7]}
33... Bd5 {[%clk 0:01:55.4]} 34. c6 {[%clk 0:00:48.3]} 34... Qb2 {[%clk
0:01:55.1]} 35. Rc2 {[%clk 0:00:40.1]} 35... Qb4 {[%clk 0:01:48.6]} 36. Rdc1
{[%clk 0:00:37.6]} 36... Qxa5 {[%clk 0:01:45.1]} 37. Bh4 {[%clk 0:00:36.2]}
37... Re8 {[%clk 0:01:23.4]} 38. Bf6 {[%clk 0:00:37]} 38... Qb6 {[%clk
0:00:37.3]} 39. Qg5 {[%clk 0:00:08.9]} 39... Qxd4+ {[%clk 0:00:37.5]} 40. Rf2
{[%clk 0:00:05.3]} 1-0

[Event "*** Titled Tuesday 3|2 Blitz (Early)"]
[Site "Chess.com"]
[Date "2016.12.06"]
[Round "4"]
[White "AungTZ"]
[Black "RaphaeI"]
[Result "0-1"]
[WhiteElo "2098"]
[BlackElo "2249"]
[TimeControl "180+2"]
[EndTime "11:49:30 PST"]
[Termination "RaphaeI won by resignation"]

1. e4 {[%clk 0:01:59.5]} 1... e6 {[%clk 0:02:59]} 2. d4 {[%clk 0:01:59.4]} 2...
d5 {[%clk 0:03:00.1]} 3. Nc3 {[%clk 0:02:00.8]} 3... Nf6 {[%clk 0:03:00.7]} 4.
Bg5 {[%clk 0:02:00.7]} 4... Bb4 {[%clk 0:03:01.1]} 5. e5 {[%clk 0:02:00.6]} 5...
h6 {[%clk 0:03:02.3]} 6. Bd2 {[%clk 0:02:02.1]} 6... Bxc3 {[%clk 0:03:03]} 7.
bxc3 {[%clk 0:02:02.2]} 7... Ne4 {[%clk 0:03:04.5]} 8. Bd3 {[%clk 0:02:03.5]}
8... Nxd2 {[%clk 0:03:04.6]} 9. Qxd2 {[%clk 0:02:03.7]} 9... c5 {[%clk
0:03:06.5]} 10. dxc5 {[%clk 0:02:04.4]} 10... Qa5 {[%clk 0:03:01.9]} 11. Ne2
{[%clk 0:02:04.5]} 11... Nc6 {[%clk 0:02:58.1]} 12. Qe3 {[%clk 0:01:58.2]} 12...
d4 {[%clk 0:02:27.7]} 13. Qg3 {[%clk 0:01:58]} 13... O-O {[%clk 0:02:23.6]} 14.
O-O {[%clk 0:01:55]} 14... dxc3 {[%clk 0:02:12.8]} 15. Rae1 {[%clk 0:01:53.6]}
15... Qxc5 {[%clk 0:02:10.3]} 16. Nxc3 {[%clk 0:01:53.5]} 16... Bd7 {[%clk
0:01:43.2]} 17. Nb5 {[%clk 0:01:48.8]} 17... Nb4 {[%clk 0:01:39]} 18. Nd6 {[%clk
0:01:47]} 18... Bc6 {[%clk 0:01:40.1]} 19. Kh1 {[%clk 0:01:34.1]} 19... Rad8
{[%clk 0:01:36.1]} 20. f4 {[%clk 0:01:33.1]} 20... Nxd3 {[%clk 0:01:20]} 21.
cxd3 {[%clk 0:01:32.8]} 21... Qd5 {[%clk 0:01:13.6]} 22. Re3 {[%clk 0:01:26.1]}
22... f6 {[%clk 0:01:09]} 23. Rg1 {[%clk 0:01:23.5]} 23... Qxa2 {[%clk
0:00:45.9]} 24. Qh3 {[%clk 0:01:16.5]} 24... fxe5 {[%clk 0:00:41]} 25. fxe5
{[%clk 0:01:17.1]} 25... Qd5 {[%clk 0:00:42.2]} 26. Ree1 {[%clk 0:01:03.3]}
26... Rf4 {[%clk 0:00:35.7]} 27. Qg3 {[%clk 0:00:52.3]} 27... Rdf8 {[%clk
0:00:34.9]} 28. Re2 {[%clk 0:00:49.3]} 28... Rf1 {[%clk 0:00:34.5]} 29. Ne4
{[%clk 0:00:43.6]} 29... Rxg1+ {[%clk 0:00:31]} 30. Kxg1 {[%clk 0:00:43.9]}
30... Qd4+ {[%clk 0:00:32.6]} 31. Qe3 {[%clk 0:00:42.5]} 31... Qxe3+ {[%clk
0:00:31]} 32. Rxe3 {[%clk 0:00:42.6]} 32... Bxe4 {[%clk 0:00:32.1]} 33. Rxe4
{[%clk 0:00:43.2]} 33... a5 {[%clk 0:00:33.2]} 34. h3 {[%clk 0:00:42.4]} 34...
Ra8 {[%clk 0:00:34.2]} 35. Ra4 {[%clk 0:00:42.3]} 35... b5 {[%clk 0:00:35.3]}
36. Ra1 {[%clk 0:00:42.3]} 36... a4 {[%clk 0:00:36.7]} 37. Kf2 {[%clk 0:00:44]}
37... b4 {[%clk 0:00:30.2]} 38. Ke3 {[%clk 0:00:45.9]} 38... a3 {[%clk
0:00:30.9]} 39. Kd2 {[%clk 0:00:45.6]} 39... Rc8 {[%clk 0:00:31.3]} 40. d4
{[%clk 0:00:42.4]} 40... Kf7 {[%clk 0:00:30.8]} 41. Rf1+ {[%clk 0:00:41.2]}
41... Ke7 {[%clk 0:00:32]} 42. Ra1 {[%clk 0:00:41.7]} 42... Kd7 {[%clk
0:00:32.1]} 43. g4 {[%clk 0:00:38.2]} 43... Rc3 {[%clk 0:00:31.8]} 44. h4 {[%clk
0:00:37.4]} 44... Kc6 {[%clk 0:00:30.6]} 45. g5 {[%clk 0:00:35.6]} 45... hxg5
{[%clk 0:00:31.9]} 46. hxg5 {[%clk 0:00:35.9]} 46... Kd5 {[%clk 0:00:33.3]} 47.
Rg1 {[%clk 0:00:34.5]} 47... Rc4 {[%clk 0:00:27.6]} 48. Ra1 {[%clk 0:00:32.2]}
48... Kxd4 {[%clk 0:00:22.9]} 0-1